Cogmind - Beta 13 @@@ ROGUE MODE // 2024.06.07 @ 18:47:04 Player: celerysam Result: Destroyed by G-47 Trooper with Particle Gun Performance ------------- Evolutions (0) 0 Regions Visited (4) 800 Robots Destroyed (20) 100 Value Destroyed (405) 405 Prototype IDs (23) 460 Alien Tech Used (0) 0 Bonus (300) 300 TOTAL SCORE: 2065 Bonus ------- Aligned with FarCom 300 Cogmind --------- Core Integrity 0/250 Matter 300/300 Energy 100/100 System Corruption 0% Temperature Cool (14) Movement Core (200) Ox3 Location -9/Mines Parts ------- > --- POWER (1) -------- (None) > --- PROPULSION (2) --- (None) > --- UTILITY (2) ------ Medium Storage Unit > --- WEAPON (2) ------- Light Assault Rifle > --- INVENTORY (10) --- Light Ion Engine Aluminum Leg Improved Aluminum Leg Compact Wheel Compact Wheel Insulated Plating Datajack Deploy-a-Sentry Deploy-a-Sentry Deploy-a-Sentry Peak State ------------ > --- POWER ------------ Ion Engine > --- PROPULSION ------- Aluminum Leg Aluminum Leg > --- UTILITY ---------- Medium Storage Unit Seismic Detector > --- WEAPON ----------- Assault Rifle Light Assault Rifle > --- INVENTORY -------- Light Ion Engine Aluminum Leg Compact Wheel Compact Wheel Insulated Plating Grenade Launcher Datajack Deploy-a-Sentry Deploy-a-Sentry Deploy-a-Sentry [Rating: 10] Favorites ----------- Power Ion Engine Engine Ion Engine Propulsion Light Treads Treads Light Treads Leg Aluminum Leg Utility Medium Storage Unit Device Seismic Detector Storage Medium Storage Unit Weapon Assault Rifle Energy Gun Particle Gun Ballistic Gun Assault Rifle Launcher Grenade Launcher Build | -11 -10 -10 -10 -9 ------- Run | Yrd Mat Min Exi Min Slots Evolved . | . . . . . Power . | . . . . . Propulsion . | . . . . . Utility . | . . . . . Weapon . | . . . . . Parts Attached 19 | 7 1 4 4 3 Power 3 | 1 . 2 . . Engine 3 | 1 . 2 . . Core . | . . . . . Reactor . | . . . . . Propulsion 5 | 2 . . 2 1 Treads 2 | 2 . . . . Leg 3 | . . . 2 1 Wheel . | . . . . . Hover . | . . . . . Flight . | . . . . . Utility 4 | 1 1 1 1 . Device 2 | . . 1 1 . Storage 2 | 1 1 . . . Processor . | . . . . . Hackware . | . . . . . Protection . | . . . . . Artifact . | . . . . . Weapon 7 | 3 . 1 1 2 Energy Gun 2 | 1 . 1 . . Energy Cannon . | . . . . . Ballistic Gun 4 | 2 . . 1 1 Ballistic Cannon . | . . . . . Launcher 1 | . . . . 1 Special Weapon . | . . . . . Impact Weapon . | . . . . . Slashing Weapon . | . . . . . Piercing Weapon . | . . . . . Special Melee Weapon . | . . . . . Unidentified Prototypes . | . . . . . Parts Lost 7 | . . 1 . 6 Power 2 | . . 1 . 1 Propulsion 2 | . . . . 2 Utility 1 | . . . . 1 Weapon 2 | . . . . 2 Highest Loss Streak 6 | . . 1 . 6 To Critical Strikes . | . . . . . Average Slot Usage (%) 97 | . 86 99 99 96 Engine 13 | . 14 13 14 13 Treads 14 | . 28 28 8 . Leg 13 | . . . 19 27 Device 11 | . . 11 13 13 Storage 14 | . 15 16 14 14 Energy Gun 7 | . 14 14 4 . Ballistic Gun 18 | . 14 14 23 14 Launcher 2 | . . . . 12 Naked Turns . | . . . . . Heaviest Build 24 | 14 24 24 21 21 Greatest Support 40 | 40 40 40 40 20 Greatest Overweight (x) 3 | 3 . . . 3 Average Overweight (x) . | 1 . . . . Largest Inventory Capacity 10 | 8 10 10 10 10 Average Capacity 9 | 7 8 10 10 10 Most Carried 10 | 8 8 10 10 10 Average Carried 9 | 4 7 9 9 9 Final Capacity 10 | 8 10 10 10 10 Final Carried 10 | 6 8 10 10 10 Class Distribution -------------------- 100% | Mutant Dominant Class ---------------- Mutant | -10/Materials Mutant | -10/Mines Mutant | -10/Exiles Mutant | -9/Mines Resources | -11 -10 -10 -10 -9 ----------- Run | Yrd Mat Min Exi Min Matter Collected 531 | 182 90 135 . 124 Remotely . | . . . . . Salvage Created 429 | . 90 218 . 121 Parts 32 | . 4 19 . 9 Haulers Intercepted . | . . . . . Recyclers Shooed . | . . . . . Parts Field Recycled . | . . . . . Retrieved Matter . | . . . . . Parts Self-Destructed . | . . . . . Prevented . | . . . . . Kills | -11 -10 -10 -10 -9 ------- Run | Yrd Mat Min Exi Min Combat Hostiles Destroyed 19 | . 2 11 . 6 Guns 15 | . 2 11 . 2 AOE 4 | . . . . 4 Classes Destroyed 4 | . 2 1 . 1 Worker 1 | . 1 . . . Swarmer 12 | . . 9 . 3 Grunt 6 | . 2 2 . 2 Duelist 1 | . . . . 1 Best Kill Streak 3 | . 3 3 . 3 Combat Bots Only 3 | . 2 3 . 3 Max Kills in Single Turn 2 | . 1 1 . 2 Gunslinging . | . . . . . Exploded 2 | . . . . 2 Melee . | . . . . . Uniques/NPCs Destroyed . | . . . . . Combat | -11 -10 -10 -10 -9 -------- Run | Yrd Mat Min Exi Min Hostile Shots Fired 138 | . 10 56 . 72 Missed 40 | . 4 18 . 18 Damage Taken 1234 | . 74 408 . 752 Core 262 | . 5 42 . 215 Absorbed by Shields . | . . . . . Core Remaining (%) 100 | 100 . . . . Volleys Fired 56 | . 7 22 . 27 Largest 2 | . 2 2 . 2 Hottest 85 | . 60 85 . 50 Shots Fired 87 | . 14 44 . 29 Gun 83 | . 14 44 . 25 Cannon . | . . . . . Launcher 4 | . . . . 4 Special . | . . . . . Kinetic 54 | . 7 22 . 25 Thermal 14 | . . 14 . . Explosive 4 | . . . . 4 Electromagnetic 15 | . 7 8 . . Robot Hit Streak 15 | . 2 15 . 5 Robot Miss Streak 4 | . 3 4 . 2 Penetration Max . | . . . . . Secondary Targets 3 | . 1 2 . . Max Gunslinging Chain 1 | . 1 1 . . Shots Hit Robots 50 | . 6 27 . 17 Core Hits 31 | . 4 14 . 13 Critical Kills 1 | . . 1 . . Critical Parts Destroyed 1 | . . 1 . . Critical Strikes 3 | . . 3 . . Burn 1 | . . 1 . . Destroy 2 | . . 2 . . Melee Attacks . | . . . . . Impact . | . . . . . Slashing . | . . . . . Piercing . | . . . . . Sneak Attacks . | . . . . . Combat Hostiles . | . . . . . Follow-up Attacks . | . . . . . Damage Inflicted 864 | . 120 386 . 358 Guns 625 | . 93 386 . 146 Cannons . | . . . . . Explosions 237 | . 27 . . 210 Melee . | . . . . . Ramming 2 | . . . . 2 Kinetic 397 | . 46 205 . 146 Thermal 124 | . 27 97 . . Explosive 210 | . . . . 210 Electromagnetic 131 | . 47 84 . . Impact . | . . . . . Slashing . | . . . . . Piercing . | . . . . . Highest Corruption . | . . . . . Average Corruption . | . . . . . Corruption Purged . | . . . . . Corruption Blocked . | . . . . . Overload Shots . | . . . . . Overflow Damage 39 | . . . . 39 Projectiles . | . . . . . Explosions 39 | . . . . 39 Melee . | . . . . . Knockbacks . | . . . . . Impact . | . . . . . Kinetic . | . . . . . Secondary . | . . . . . Self-Inflicted Damage 81 | . 11 . . 70 Shots 3 | . 1 . . 2 Rammed 1 | . . . . 1 Targets Rammed 3 | . . . . 3 Kicked 2 | . . . . 2 Crushed . | . . . . . Highest Temperature 144 | . 18 144 . 10 Average Temperature 40 | . 13 49 . 3 Received Heat Transfer 501 | . 36 108 . 357 Siege Activations . | . . . . . Robots Corrupted . | . . . . . Combat Hostiles . | . . . . . Parts Fried . | . . . . . Impact Corruptions . | . . . . . Robots Melted . | . . . . . Combat Hostiles . | . . . . . Parts Melted . | . . . . . Heat Transferred 346 | . 50 296 . . Parts Sabotaged . | . . . . . Parts Stolen . | . . . . . Parts Stripped . | . . . . . Power Chain Reactions 1 | . 1 . . . Alert | -11 -10 -10 -10 -9 ------- Run | Yrd Mat Min Exi Min Peak Influence 206 | . 156 206 . 80 Initial 1 | . . 1 . . Average 64 | . 61 75 . 67 Maximum Alert Level 1 | . . 1 . . Low Security (%) 95 | 100 100 88 . 100 Level 1 4 | . . 11 . . Level 2 . | . . . . . Level 3 . | . . . . . Level 4 . | . . . . . Level 5 . | . . . . . High Security . | . . . . . Max Security . | . . . . . Squads Dispatched 3 | . 3 . . . Investigation 2 | . 2 . . . Extermination . | . . . . . Reinforcement 1 | . 1 . . . Assault . | . . . . . Garrison . | . . . . . Intercept . | . . . . . Searches Triggered . | . . . . . Construction Impeded . | . . . . . Haulers Reinforced . | . . . . . Active Scanning Responses . | . . . . . Cargo Convoy Interrupts . | . . . . . Stealth | -11 -10 -10 -10 -9 --------- Run | Yrd Mat Min Exi Min Distress Signals . | . . . . . Communications Jammed . | . . . . . Distress Signals . | . . . . . Times Spotted 26 | . 7 11 . 8 Peak Tracking Total 4 | . 4 3 . 4 Tactical Retreats 1 | . 1 . . . Traps | -11 -10 -10 -10 -9 ------- Run | Yrd Mat Min Exi Min Traps Triggered 2 | . . 2 . . Indirectly . | . . . . . Trap Hack Attempts . | . . . . . Triggered . | . . . . . Disarmed . | . . . . . Reprogrammed 4 | . 4 . . . Reused . | . . . . . Traps Extracted . | . . . . . Installed . | . . . . . Triggered . | . . . . . Machines | -11 -10 -10 -10 -9 ---------- Run | Yrd Mat Min Exi Min Machines Disabled 2 | . 2 . . . Max in Single Turn 1 | . 1 . . . Machines Repaired . | . . . . . Machines Dismantled . | . . . . . Machines Sabotaged . | . . . . . Overloaded Fab Kills . | . . . . . Hacking | -11 -10 -10 -10 -9 --------- Run | Yrd Mat Min Exi Min Machines Accessed 10 | . 3 2 5 . Terminals 4 | . 3 1 . . Fabricators . | . . . . . Repair Stations . | . . . . . Recycling Units . | . . . . . Scanalyzers . | . . . . . Garrison Access . | . . . . . Total Hacks 61 | . 8 3 50 . Successful 55 | . 4 1 50 . Failed 6 | . 4 2 . . Catastrophic . | . . . . . Database Lockouts . | . . . . . Manual 6 | . 2 . 4 . Terminals 10 | . 8 2 . . Fabricators . | . . . . . Repair Stations . | . . . . . Recycling Units . | . . . . . Scanalyzers . | . . . . . Garrison Access . | . . . . . Terminal Hacks 55 | . 4 1 50 . Record 50 | . 1 . 49 . Open Door 1 | . . 1 . . Unreport Threat 1 | . 1 . . . Locate Traps 1 | . 1 . . . Reprogram Traps 1 | . 1 . . . Derelict Proto ID Bank 1 | . . . 1 . Fabricator Hacks . | . . . . . Repair Station Hacks . | . . . . . Recycling Unit Hacks . | . . . . . Scanalyzer . | . . . . . Garrison Access Hacks . | . . . . . Unauthorized Hacks . | . . . . . Terminals . | . . . . . Fabricators . | . . . . . Repair Stations . | . . . . . Recycling Units . | . . . . . Scanalyzers . | . . . . . Garrison Access . | . . . . . Data Cores Recovered . | . . . . . Used . | . . . . . Hacking Detections 3 | . 2 1 . . Full Trace Events 2 | . 2 . . . Feedback Events . | . . . . . Feedback Blocked . | . . . . . Robot Schematics Acquired . | . . . . . Robots Built . | . . . . . Authchips . | . . . . . Time . | . . . . . Total Robot Build Rating . | . . . . . Part Schematics Acquired . | . . . . . Parts Built . | . . . . . Authchips . | . . . . . Time . | . . . . . Total Part Build Rating . | . . . . . Parts Repaired . | . . . . . Time . | . . . . . Parts Recycled . | . . . . . Recycled Matter . | . . . . . Retrieved Matter . | . . . . . Retrieved Components . | . . . . . Parts Scanalyzed . | . . . . . Part Schematics Acquired . | . . . . . Parts Damaged . | . . . . . Bothacking | -11 -10 -10 -10 -9 ------------ Run | Yrd Mat Min Exi Min Used RIF Installer . | . . . . . Robots Hacked . | . . . . . Non-combat . | . . . . . Combat . | . . . . . Robot Hacks Applied . | . . . . . Relay Couplers Released . | . . . . . Fabnet Peak Effective % . | . . . . . Robots Rewired . | . . . . . Allies Hacked . | . . . . . Hacks Repelled . | . . . . . Allies | -11 -10 -10 -10 -9 -------- Run | Yrd Mat Min Exi Min Total Allies . | . . . . . Largest Group . | . . . . . Highest-Rated Group . | . . . . . Highest-Rated Ally . | . . . . . Total Orders . | . . . . . Ally Attacks . | . . . . . Total Damage . | . . . . . Kills . | . . . . . Allies Corrupted . | . . . . . Allies Melted . | . . . . . Intel | -11 -10 -10 -10 -9 ------- Run | Yrd Mat Min Exi Min Robot Analysis Total . | . . . . . Derelict Logs Recovered 3 | . . 2 . 1 Drone Launches . | . . . . . Drone Recoveries . | . . . . . Exploration | -11 -10 -10 -10 -9 ------------- Run | Yrd Mat Min Exi Min Turns Passed 2527 | 124 291 629 1020 463 Spaces Moved 1537 | 63 163 332 776 203 Core 29 | 27 . . . 2 Treads 725 | 36 163 332 194 . Legs 783 | . . . 582 201 Wheels . | . . . . . Hover . | . . . . . Flight . | . . . . . Fastest Speed 50 | 50 160 160 120 120 Average Speed 148 | 167 160 160 130 183 Slowest Speed 200 | 200 160 160 160 200 Overloaded Moves . | . . . . . Propulsion Burnouts . | . . . . . Robots Hopped . | . . . . . Cave-ins Triggered . | . . . . . Exploration Rate (%) 47 | 6 25 62 91 51 Regions Visited 4 Branch Regions 3 Pre-discovered Areas 1 | . . . 1 . Known Exits Taken . | . . . . . Unknown Exits Taken 4 | 1 1 1 1 . Scrap Searched 2 | . . 2 . . Spaces Dug . | . . . . . Terrain Destroyed 40 | . 4 . . 36 Melee . | . . . . . Projectile . | . . . . . AOE 40 | . 4 . . 36 Terrain Rammed . | . . . . . Walls Destroyed . | . . . . . Machines Disabled . | . . . . . Actions | -11 -10 -10 -10 -9 --------- Run | Yrd Mat Min Exi Min Total 1698 | 81 179 386 788 264 Wait 55 | . 7 22 . 26 Move 1533 | 62 162 331 775 203 Hop . | . . . . . Pick Up 23 | 12 2 4 4 1 Fast Attach 2 | . 1 1 . . Attach 10 | 6 . 1 2 1 Detach . | . . . . . Swap 7 | 1 . 2 2 2 Drop 8 | . . 3 4 1 Fire 56 | . 7 22 . 27 Melee . | . . . . . Ram 1 | . . . . 1 Kick 2 | . . . . 2 Crush . | . . . . . Escape Stasis . | . . . . . Rewire 1 | . . . 1 . Trap . | . . . . . Miscellaneous . | . . . . . Route ------- -11/Scrapyard -10/Materials -10/Mines (discovered 3 exits: [*Mat x2] / *Exi) -10/Exiles -9/Mines History --------- Turn | Location | Event 32 | -11/Scrapyard | Discovered new exit (range 15) 125 | -11/Scrapyard | Entered Materials 316 | -10/Materials | Build established: Mutant 400 | -10/Materials | Discovered new exit (range 8) 416 | -10/Materials | Entered Mines 539 | -10/Mines | Discovered new exit (range 8) 624 | -10/Mines | Discovered new exit (range 6) 853 | -10/Mines | Met a Derelict who couldn't figure out how to use a Trap Extractor 951 | -10/Mines | Learned 2 Materials zone layouts 991 | -10/Mines | Learned Materials stockpile data 1011 | -10/Mines | Deemed a non-threat by the Exiles lab entrance 1011 | -10/Mines | Discovered new exit (range 5) 1045 | -10/Mines | Entered Exiles 1089 | -10/Exiles | Met 8R-AWN 1117 | -10/Exiles | Met EX-HEX 1189 | -10/Exiles | Met EX-BIN 1208 | -10/Exiles | Aligned with FarCom system 1210 | -10/Exiles | Given EX-Vault access code 1336 | -10/Exiles | Opened EX-Vault 1363 | -10/Exiles | Found Deploy-a-Sentry 1365 | -10/Exiles | Found Deploy-a-Sentry 1373 | -10/Exiles | Found Deploy-a-Sentry 1428 | -10/Exiles | Warned to stay clear of 0b10 Research branches 1472 | -10/Exiles | Met EX-DEC 1521 | -10/Exiles | Visited The Gauntlet 1791 | -10/Exiles | Discovered new exit (range 13) 1850 | -10/Exiles | Learned location of Zion (-6) 2065 | -10/Exiles | Left Exiles lab with Deploy-a-Sentry 2065 | -10/Exiles | Entered Mines 2238 | -9/Mines | Learned location of 1 exit from Proximity Caves 2495 | -9/Mines | Core integrity fell below 50% 2521 | -9/Mines | Core integrity fell below 20% 2528 | -9/Mines | Destroyed by G-47 Trooper with Particle Gun Last Messages --------------- 02504_ Aluminum Leg destroyed. 02504_ R-06 Scavenger collects Ion Engine. 02508_ Acquired 41 matter. 02512_ Seismic Detector destroyed. 02513_ The unstable cave ceiling collapses. 02514_ Kicked G-47 Trooper. 02514_ U-05 Engineer builds a Wall. 02516_ Kicked G-47 Trooper. 02518_ Aluminum Leg destroyed. 02518_ Slammed into G-47 Trooper. 02518_ U-05 Engineer lays Concrete. 02518_ U-05 Engineer builds a Wall. 02521_ Acquired 1 matter. 02522_ U-05 Engineer builds a Wall. 02523_ The unstable cave ceiling collapses. 02523_ U-05 Engineer lays Concrete. 02525_ R-06 Scavenger collects Aluminum Leg. 02527_ Acquired 1 matter. 02527_ U-05 Engineer builds a Wall. 02528_ Acquired 1 matter. Map ----- +----------------------------------------------------+ | | | | | | | | | | | | | ??????????????????????????????????? | | ?????##########???????????????????? | | ????## #???????????????????? | | ???## ##### #???????????????????? | | #### #???# #???????####????????? | | ##???# ######### ##???????? | | ###????# ##??????? | | ##??????#### ##### ##?????? | | ###??????????# #???## ##????? | | ##????????????# #????## #????? | | ##?????????????# #?????## #????? | | ???????????????# ######?## ##????? | | ######?????????# #??# ##?????? | | #?????????###### #### #??????? | | #### #??????????????# ####???? | | ????????????????????# ###### ##??? | | ????????????????????# #??## #??? | | ????????????????????# #### #??? | | ???????????????????## ## #??? | | ???????????????????# g@= #??? | | ??????????????????# # #??? | | ??????????????????# ## ##??? | | ??????????????????# ## rg #???? | | ?????????????????# ## # #???? | | ?????????????????# #### ###???? | | ????????????????# ?##u#?????? | | ????????????????# ?? #?????? | | ????????????????## #??# #?????? | | ?????????????????### #?# #?????? | | ???????????????????## ? ?????? | | ????????????????????# ? #????? | | ???????????????????? # ##????? | | ???????????????????? ###?????? | | ???????????????????? ? #????????? | | ??????????????????????? #?????????? | | ??????????????????????? ??????????? | | ???????????????????????#??????????? | | ??????????????????????????????????? | | ??????????????????????????????????? | | ??????????????????????????????????? | | ??????????????????????????????????? | | ??????????????????????????????????? | | ??????????????????????????????????? | | ?????????????????????????????????? | +----------------------------------------------------+ Best States ------------- Heat Dissipation 25 Energy Generation 10 Energy Capacity 250 Matter Stores 300 Matter Capacity 300 Sight Range 16 Terrain Scan Density 10 Evasion (%) 55 Recoil Reduction 2 Item Schematics ----------------- None Robot Schematics ------------------ None Fabricated ------------ Nothing Alien Tech Used ----------------- None Achievements -------------- None Challenges ------------ None Game ------ Seed SwordAntimatterDiverter Manual? 0 Play Time 00:34:37 Cumulative 31.8 hours Start 2024.06.06 @ 19:51:07 End 2024.06.07 @ 18:47:04 Sessions 3 Manual Loads 0 Difficulty Rogue Special Mode None Game No. 56 Rogue 56 Adventurer 0 Explorer 0 Win Type - Total 0 Types 0/0/0/0/0/0/0/0/0 Lore% 21 Gallery% 31 Achievement% 22 Wizard Run 0 Options --------- Layout 0 ASCII 0 Keyboard 0 Movement Mouse Keybinds 0 Fullscreen 1 Font 24/Smallcaps Map View 76x50 Zoom Use 2% Tactical HUD 1 Map Filters NONE Filters NONE Steam 1 RUN: 5b79a8aa-ab5d-4577-a08b-6f98cabe872e